[Event "Titled Tuesday Blitz August 22 Late 2023"]
[White "Kohler, Aran"]
[Black "Melikhov, Evgeny V."]
[WhiteFideId "1002856"]
[BlackFideId "4122046"]
[WhiteElo "2261"]
[BlackElo "2387"]
[Result "0-1"]
[Round "9"]
[TimeControl "180+1"]
[Date "2023.08.22"]
[WhiteClock "0:00:00"]
[BlackClock "0:00:35"]
[Board "107"]

1. d4 {[%clk 0:03:00]}  Nf6 {[%clk 0:02:59]} 2. Nf3 {[%clk 0:03:00]}  d5 {[%clk 0:02:59]} 3. Bf4 {[%clk 0:02:59]}  c5 {[%clk 0:02:58]} 4. e3 {[%clk 0:02:56]}  Nc6 {[%clk 0:02:50]} 5. c3 {[%clk 0:02:55]}  Bg4 {[%clk 0:02:47]} 6. Be2 {[%clk 0:02:51]}  e6 {[%clk 0:02:47]} 7. Nbd2 {[%clk 0:02:47]}  cxd4 {[%clk 0:02:45]} 8. exd4 {[%clk 0:02:46]}  Bd6 {[%clk 0:02:44]} 9. Ne5 {[%clk 0:02:42]}  Bxe2 {[%clk 0:02:43]} 10. Qxe2 {[%clk 0:02:41]}  Bxe5 {[%clk 0:02:43]} 11. dxe5 {[%clk 0:02:37]}  Nd7 {[%clk 0:02:42]} 12. Nf3 {[%clk 0:02:37]}  O-O {[%clk 0:02:33]} 13. O-O {[%clk 0:02:36]}  Qc7 {[%clk 0:02:25]} 14. Rfe1 {[%clk 0:02:36]}  Rac8 {[%clk 0:02:11]} 15. Bg3 {[%clk 0:02:33]}  Na5 {[%clk 0:02:06]} 16. Rad1 {[%clk 0:02:32]}  Qc4 {[%clk 0:02:04]} 17. Qxc4 {[%clk 0:02:28]}  Nxc4 {[%clk 0:02:00]} 18. Re2 {[%clk 0:02:24]}  b5 {[%clk 0:01:59]} 19. Nd4 {[%clk 0:02:18]}  a6 {[%clk 0:01:55]} 20. f4 {[%clk 0:02:11]}  g6 {[%clk 0:01:54]} 21. Bh4 {[%clk 0:02:10]}  Rfe8 {[%clk 0:01:50]} 22. g4 {[%clk 0:02:08]}  Nc5 {[%clk 0:01:41]} 23. b3 {[%clk 0:01:59]}  Nb6 {[%clk 0:01:35]} 24. Re3 {[%clk 0:01:55]}  Ne4 {[%clk 0:01:34]} 25. Be1 {[%clk 0:01:56]}  Re7 {[%clk 0:01:27]} 26. Kg2 {[%clk 0:01:45]}  Rec7 {[%clk 0:01:19]} 27. Rdd3 {[%clk 0:01:45]}  Nd7 {[%clk 0:01:18]} 28. Kf3 {[%clk 0:01:27]}  Rb7 {[%clk 0:01:00]} 29. Rd1 {[%clk 0:01:00]}  a5 {[%clk 0:00:57]} 30. Rxe4 {[%clk 0:00:47]}  dxe4+ {[%clk 0:00:57]} 31. Kxe4 {[%clk 0:00:48]}  b4 {[%clk 0:00:54]} 32. c4 {[%clk 0:00:45]}  Nc5+ {[%clk 0:00:53]} 33. Ke3 {[%clk 0:00:39]}  Rd7 {[%clk 0:00:53]} 34. f5 {[%clk 0:00:33]}  Rcd8 {[%clk 0:00:51]} 35. f6 {[%clk 0:00:26]}  Kf8 {[%clk 0:00:47]} 36. Bf2 {[%clk 0:00:22]}  Ke8 {[%clk 0:00:45]} 37. Kf4 {[%clk 0:00:21]}  h6 {[%clk 0:00:40]} 38. h4 {[%clk 0:00:20]}  a4 {[%clk 0:00:38]} 39. g5 {[%clk 0:00:09]}  h5 {[%clk 0:00:37]} 40. Re1 {[%clk 0:00:02]}  Rxd4+ {[%clk 0:00:36]} 41. Bxd4 {[%clk 0:00:01]}  Rxd4+ {[%clk 0:00:36]} 42. Ke3 {[%clk 0:00:01]}  Rd3+ {[%clk 0:00:36]} 43. Ke2 {[%clk 0:00:02]}  axb3 {[%clk 0:00:36]} 44. axb3 {[%clk 0:00:02]}  Rxb3 {[%clk 0:00:36]} 45. Ra1 {[%clk 0:00:02]}  Ra3 {[%clk 0:00:37]} 46. Rd1 {[%clk 0:00:02]}  b3 {[%clk 0:00:37]} 47. Rd6 {[%clk 0:00:02]}  b2 {[%clk 0:00:36]} 48. Rb6 {[%clk 0:00:02]}  Rb3 {[%clk 0:00:36]} 49. Rc6 {[%clk 0:00:00]}  b1=Q {[%clk 0:00:35]} 0-1


[Site "https://www.chess.com"]

[Event "Titled Tuesday Blitz August 22 Late 2023"]
[White "KorolDimitriy75"]
[Black "Osmonbekov, Talaibek"]
[BlackFideId "2017253"]
[WhiteElo "2352"]
[BlackElo "2209"]
[Result "0-1"]
[Round "9"]
[TimeControl "180+1"]
[Date "2023.08.22"]
[WhiteClock "0:00:00"]
[BlackClock "0:01:41"]
[Board "111"]

1. d4 {[%clk 0:03:00]}  e6 {[%clk 0:02:48]} 2. c4 {[%clk 0:03:00]}  f5 {[%clk 0:02:47]} 3. g3 {[%clk 0:02:59]}  Nf6 {[%clk 0:02:47]} 4. Bg2 {[%clk 0:02:59]}  Be7 {[%clk 0:02:48]} 5. Nc3 {[%clk 0:02:58]}  O-O {[%clk 0:02:49]} 6. Nf3 {[%clk 0:02:57]}  d6 {[%clk 0:02:48]} 7. O-O {[%clk 0:02:57]}  a5 {[%clk 0:02:45]} 8. Re1 {[%clk 0:02:57]}  Ne4 {[%clk 0:02:42]} 9. Qc2 {[%clk 0:02:48]}  Nxc3 {[%clk 0:02:41]} 10. Qxc3 {[%clk 0:02:49]}  Nc6 {[%clk 0:02:39]} 11. e4 {[%clk 0:02:42]}  e5 {[%clk 0:02:38]} 12. dxe5 {[%clk 0:02:01]}  dxe5 {[%clk 0:02:39]} 13. exf5 {[%clk 0:01:37]}  Bb4 {[%clk 0:02:38]} 14. Qe3 {[%clk 0:01:25]}  Bxe1 {[%clk 0:02:38]} 15. Qxe1 {[%clk 0:01:21]}  Bxf5 {[%clk 0:02:36]} 16. Bg5 {[%clk 0:01:07]}  Qe8 {[%clk 0:02:35]} 17. h3 {[%clk 0:00:25]}  Bd3 {[%clk 0:02:11]} 18. b3 {[%clk 0:00:13]}  e4 {[%clk 0:02:02]} 19. Nd2 {[%clk 0:00:12]}  Nd4 {[%clk 0:02:00]} 20. Rc1 {[%clk 0:00:02]}  Ne2+ {[%clk 0:01:50]} 21. Kh2 {[%clk 0:00:02]}  Nxc1 {[%clk 0:01:51]} 22. Qxc1 {[%clk 0:00:02]}  Rxf2 {[%clk 0:01:49]} 23. Be3 {[%clk 0:00:01]}  Re2 {[%clk 0:01:47]} 24. Qg1 {[%clk 0:00:02]}  a4 {[%clk 0:01:45]} 25. Kh1 {[%clk 0:00:02]}  axb3 {[%clk 0:01:44]} 26. Nxb3 {[%clk 0:00:01]}  Raxa2 {[%clk 0:01:44]} 27. Bf1 {[%clk 0:00:01]}  Rh2+ {[%clk 0:01:42]} 28. Qxh2 {[%clk 0:00:01]}  Rxh2+ {[%clk 0:01:42]} 29. Kxh2 {[%clk 0:00:01]}  Bxf1 {[%clk 0:01:43]} 30. Nd4 {[%clk 0:00:01]}  Bxc4 {[%clk 0:01:43]} 31. h4 {[%clk 0:00:01]}  b5 {[%clk 0:01:42]} 32. h5 {[%clk 0:00:01]}  b4 {[%clk 0:01:42]} 33. h6 {[%clk 0:00:00]}  gxh6 {[%clk 0:01:41]} 0-1


[Site "https://www.chess.com"]

[Event "Titled Tuesday Blitz August 22 Late 2023"]
[White "rionelG"]
[Black "Novikova, Margarita"]
[BlackFideId "14109689"]
[WhiteElo "2350"]
[BlackElo "2181"]
[Result "0-1"]
[Round "9"]
[TimeControl "180+1"]
[Date "2023.08.22"]
[WhiteClock "0:00:13"]
[BlackClock "0:01:32"]
[Board "112"]

1. e4 {[%clk 0:02:56]}  d5 {[%clk 0:02:59]} 2. exd5 {[%clk 0:02:56]}  Qxd5 {[%clk 0:03:00]} 3. Nc3 {[%clk 0:02:56]}  Qd6 {[%clk 0:03:00]} 4. d4 {[%clk 0:02:56]}  Nf6 {[%clk 0:03:01]} 5. Bc4 {[%clk 0:02:54]}  a6 {[%clk 0:03:00]} 6. Nf3 {[%clk 0:02:54]}  b5 {[%clk 0:02:50]} 7. Bb3 {[%clk 0:02:44]}  Bb7 {[%clk 0:02:50]} 8. O-O {[%clk 0:02:34]}  e6 {[%clk 0:02:45]} 9. Ne5 {[%clk 0:02:34]}  Nc6 {[%clk 0:02:40]} 10. Bf4 {[%clk 0:02:07]}  Qxd4 {[%clk 0:02:29]} 11. Nxc6 {[%clk 0:01:57]}  Qxd1 {[%clk 0:02:24]} 12. Raxd1 {[%clk 0:01:56]}  Bxc6 {[%clk 0:02:23]} 13. Bxc7 {[%clk 0:01:56]}  Be7 {[%clk 0:02:16]} 14. a4 {[%clk 0:00:57]}  b4 {[%clk 0:02:13]} 15. Ne2 {[%clk 0:00:57]}  O-O {[%clk 0:02:00]} 16. Nd4 {[%clk 0:00:57]}  Bd5 {[%clk 0:02:00]} 17. Be5 {[%clk 0:00:56]}  Bxb3 {[%clk 0:01:58]} 18. Nxb3 {[%clk 0:00:55]}  Nd5 {[%clk 0:01:57]} 19. Rd2 {[%clk 0:00:46]}  Rac8 {[%clk 0:01:55]} 20. Rfd1 {[%clk 0:00:45]}  Rc4 {[%clk 0:01:53]} 21. g3 {[%clk 0:00:44]}  h5 {[%clk 0:01:49]} 22. f4 {[%clk 0:00:43]}  h4 {[%clk 0:01:47]} 23. f5 {[%clk 0:00:42]}  Ne3 {[%clk 0:01:42]} 24. Rd7 {[%clk 0:00:20]}  Nxf5 {[%clk 0:01:40]} 25. R1d4 {[%clk 0:00:17]}  Nxd4 {[%clk 0:01:38]} 26. Nxd4 {[%clk 0:00:17]}  Bc5 {[%clk 0:01:37]} 27. Kg2 {[%clk 0:00:16]}  Bxd4 {[%clk 0:01:36]} 28. Bxd4 {[%clk 0:00:16]}  Rxc2+ {[%clk 0:01:36]} 29. Kh3 {[%clk 0:00:16]}  hxg3 {[%clk 0:01:35]} 30. hxg3 {[%clk 0:00:13]}  Rd2 {[%clk 0:01:32]} 0-1


[Site "https://www.chess.com"]

[Event "Titled Tuesday Blitz August 22 Late 2023"]
[White "Martinez, Shawn"]
[Black "Kula, Robert"]
[WhiteFideId "2039770"]
[BlackFideId "1101218"]
[WhiteElo "2343"]
[BlackElo "2157"]
[Result "0-1"]
[Round "9"]
[TimeControl "180+1"]
[Date "2023.08.22"]
[WhiteClock "0:00:00"]
[BlackClock "0:00:30"]
[Board "113"]

1. e4 {[%clk 0:02:56]}  c5 {[%clk 0:02:58]} 2. Nc3 {[%clk 0:02:49]}  Nc6 {[%clk 0:02:58]} 3. Bb5 {[%clk 0:02:44]}  Nd4 {[%clk 0:02:58]} 4. Nf3 {[%clk 0:02:41]}  g6 {[%clk 0:02:43]} 5. O-O {[%clk 0:02:36]}  Bg7 {[%clk 0:02:43]} 6. Nxd4 {[%clk 0:02:35]}  cxd4 {[%clk 0:02:42]} 7. Ne2 {[%clk 0:02:36]}  Qb6 {[%clk 0:02:19]} 8. Bd3 {[%clk 0:01:47]}  Nf6 {[%clk 0:02:16]} 9. c3 {[%clk 0:01:42]}  dxc3 {[%clk 0:02:14]} 10. dxc3 {[%clk 0:01:36]}  O-O {[%clk 0:02:12]} 11. Qc2 {[%clk 0:01:29]}  Ng4 {[%clk 0:02:04]} 12. h3 {[%clk 0:01:02]}  Ne5 {[%clk 0:02:01]} 13. Be3 {[%clk 0:01:01]}  Qc7 {[%clk 0:01:53]} 14. Bf4 {[%clk 0:00:43]}  d6 {[%clk 0:01:51]} 15. Rad1 {[%clk 0:00:40]}  Be6 {[%clk 0:01:41]} 16. b3 {[%clk 0:00:31]}  Rfc8 {[%clk 0:01:32]} 17. c4 {[%clk 0:00:25]}  b5 {[%clk 0:01:32]} 18. Nc3 {[%clk 0:00:19]}  bxc4 {[%clk 0:01:25]} 19. bxc4 {[%clk 0:00:19]}  Nxd3 {[%clk 0:01:23]} 20. Rxd3 {[%clk 0:00:15]}  Bxc4 {[%clk 0:01:22]} 21. Nd5 {[%clk 0:00:07]}  Qd7 {[%clk 0:01:18]} 22. Rc3 {[%clk 0:00:06]}  Bxf1 {[%clk 0:01:09]} 23. Rxc8+ {[%clk 0:00:05]}  Rxc8 {[%clk 0:01:06]} 24. Qxc8+ {[%clk 0:00:06]}  Qxc8 {[%clk 0:01:04]} 25. Nxe7+ {[%clk 0:00:06]}  Kh8 {[%clk 0:01:01]} 26. Nxc8 {[%clk 0:00:07]}  Bc4 {[%clk 0:01:00]} 27. Nxd6 {[%clk 0:00:07]}  Bxa2 {[%clk 0:01:00]} 28. Bd2 {[%clk 0:00:07]}  a6 {[%clk 0:00:53]} 29. f4 {[%clk 0:00:05]}  Bd4+ {[%clk 0:00:52]} 30. Kf1 {[%clk 0:00:04]}  Bc5 {[%clk 0:00:51]} 31. e5 {[%clk 0:00:04]}  Kg8 {[%clk 0:00:48]} 32. g4 {[%clk 0:00:03]}  Kf8 {[%clk 0:00:47]} 33. Kg2 {[%clk 0:00:04]}  Ke7 {[%clk 0:00:47]} 34. Nb7 {[%clk 0:00:04]}  Bd5+ {[%clk 0:00:46]} 35. Kg3 {[%clk 0:00:03]}  Bxb7 {[%clk 0:00:46]} 36. f5 {[%clk 0:00:03]}  Bd4 {[%clk 0:00:41]} 37. Kf4 {[%clk 0:00:03]}  g5+ {[%clk 0:00:41]} 38. Kxg5 {[%clk 0:00:02]}  Bxe5 {[%clk 0:00:42]} 39. Bb4+ {[%clk 0:00:03]}  Ke8 {[%clk 0:00:39]} 40. Kh6 {[%clk 0:00:03]}  Bg2 {[%clk 0:00:37]} 41. h4 {[%clk 0:00:01]}  Bh3 {[%clk 0:00:38]} 42. Kg5 {[%clk 0:00:01]}  f6+ {[%clk 0:00:33]} 43. Kh5 {[%clk 0:00:01]}  Kf7 {[%clk 0:00:32]} 44. Bd2 {[%clk 0:00:00]}  Bc7 {[%clk 0:00:30]} 0-1


[Site "https://www.chess.com"]

[Event "Titled Tuesday Blitz August 22 Late 2023"]
[White "Harish, Neeraj"]
[Black "Castillo Pena, Patricia Evarista"]
[WhiteFideId "30958130"]
[BlackFideId "6412106"]
[WhiteElo "2341"]
[BlackElo "1963"]
[Result "1/2-1/2"]
[Round "9"]
[TimeControl "180+1"]
[Date "2023.08.22"]
[WhiteClock "0:00:07"]
[BlackClock "0:00:02"]
[Board "114"]

1. e4 {[%clk 0:02:58]}  c5 {[%clk 0:02:59]} 2. Nf3 {[%clk 0:02:57]}  d6 {[%clk 0:02:59]} 3. d4 {[%clk 0:02:58]}  cxd4 {[%clk 0:03:00]} 4. Nxd4 {[%clk 0:02:59]}  Nf6 {[%clk 0:03:00]} 5. Nc3 {[%clk 0:02:59]}  a6 {[%clk 0:03:00]} 6. Bd3 {[%clk 0:02:59]}  e5 {[%clk 0:03:00]} 7. Nde2 {[%clk 0:02:59]}  Be6 {[%clk 0:03:00]} 8. Ng3 {[%clk 0:02:58]}  Be7 {[%clk 0:02:59]} 9. O-O {[%clk 0:02:57]}  O-O {[%clk 0:02:58]} 10. Nd5 {[%clk 0:02:54]}  Nbd7 {[%clk 0:02:53]} 11. c4 {[%clk 0:02:51]}  Rc8 {[%clk 0:02:51]} 12. Nf5 {[%clk 0:02:44]}  Bxf5 {[%clk 0:02:45]} 13. exf5 {[%clk 0:02:44]}  Nb6 {[%clk 0:02:42]} 14. Nxb6 {[%clk 0:02:37]}  Qxb6 {[%clk 0:02:41]} 15. b3 {[%clk 0:02:36]}  e4 {[%clk 0:02:30]} 16. Bc2 {[%clk 0:02:34]}  Rfd8 {[%clk 0:02:25]} 17. Be3 {[%clk 0:02:34]}  Qa5 {[%clk 0:02:19]} 18. Qe1 {[%clk 0:02:08]}  Qxf5 {[%clk 0:02:11]} 19. f3 {[%clk 0:02:06]}  Qh5 {[%clk 0:01:40]} 20. fxe4 {[%clk 0:02:04]}  Ng4 {[%clk 0:01:38]} 21. Bf4 {[%clk 0:02:02]}  Bg5 {[%clk 0:01:32]} 22. h3 {[%clk 0:01:52]}  Bxf4 {[%clk 0:01:30]} 23. Rxf4 {[%clk 0:01:52]}  Ne5 {[%clk 0:01:27]} 24. Qf2 {[%clk 0:01:47]}  Rf8 {[%clk 0:01:25]} 25. Rd1 {[%clk 0:01:38]}  Qg6 {[%clk 0:01:21]} 26. Rd5 {[%clk 0:01:35]}  b5 {[%clk 0:01:19]} 27. cxb5 {[%clk 0:01:26]}  axb5 {[%clk 0:01:15]} 28. Qd2 {[%clk 0:01:21]}  b4 {[%clk 0:01:03]} 29. Bd3 {[%clk 0:01:12]}  Rc3 {[%clk 0:00:51]} 30. Kh2 {[%clk 0:01:05]}  Rfc8 {[%clk 0:00:47]} 31. Bf1 {[%clk 0:01:01]}  h5 {[%clk 0:00:43]} 32. Rxd6 {[%clk 0:01:00]}  Qg3+ {[%clk 0:00:37]} 33. Kh1 {[%clk 0:00:54]}  Rc2 {[%clk 0:00:12]} 34. Qd5 {[%clk 0:00:17]}  Qxf4 {[%clk 0:00:10]} 35. Rd8+ {[%clk 0:00:18]}  Rxd8 {[%clk 0:00:08]} 36. Qxd8+ {[%clk 0:00:18]}  Kh7 {[%clk 0:00:08]} 37. Qd1 {[%clk 0:00:19]}  Rf2 {[%clk 0:00:08]} 38. Qxh5+ {[%clk 0:00:18]}  Kg8 {[%clk 0:00:08]} 39. Bc4 {[%clk 0:00:17]}  Rf1+ {[%clk 0:00:08]} 40. Bxf1 {[%clk 0:00:17]}  Qxf1+ {[%clk 0:00:08]} 41. Kh2 {[%clk 0:00:18]}  Qf4+ {[%clk 0:00:09]} 42. Kh1 {[%clk 0:00:18]}  Qf1+ {[%clk 0:00:10]} 43. Kh2 {[%clk 0:00:18]}  Qf4+ {[%clk 0:00:10]} 44. Kh1 {[%clk 0:00:17]}  Nd3 {[%clk 0:00:08]} 45. Qd5 {[%clk 0:00:13]}  Qf1+ {[%clk 0:00:05]} 46. Kh2 {[%clk 0:00:13]}  Qf4+ {[%clk 0:00:05]} 47. Kg1 {[%clk 0:00:13]}  Qf2+ {[%clk 0:00:06]} 48. Kh2 {[%clk 0:00:12]}  Nf4 {[%clk 0:00:06]} 49. Qd8+ {[%clk 0:00:12]}  Kh7 {[%clk 0:00:07]} 50. Qg5 {[%clk 0:00:12]}  Ne2 {[%clk 0:00:05]} 51. Qh5+ {[%clk 0:00:05]}  Kg8 {[%clk 0:00:04]} 52. h4 {[%clk 0:00:06]}  Qg3+ {[%clk 0:00:03]} 53. Kh1 {[%clk 0:00:06]}  Qe1+ {[%clk 0:00:03]} 54. Kh2 {[%clk 0:00:07]}  Qg3+ {[%clk 0:00:03]} 55. Kh1 {[%clk 0:00:07]}  Qe1+ {[%clk 0:00:03]} 56. Kh2 {[%clk 0:00:07]}  Qg3+ {[%clk 0:00:02]} 1/2-1/2


[Site "https://www.chess.com"]

[Event "Titled Tuesday Blitz August 22 Late 2023"]
[White "Shapiro, Daniel"]
[Black "Fiorito, Joaquin"]
[WhiteFideId "2001780"]
[BlackFideId "180173"]
[WhiteElo "2281"]
[BlackElo "2581"]
[Result "0-1"]
[Round "9"]
[TimeControl "180+1"]
[Date "2023.08.22"]
[WhiteClock "0:00:00"]
[BlackClock "0:02:02"]
[Board "115"]

1. d4 {[%clk 0:03:00]}  Nf6 {[%clk 0:03:00]} 2. c4 {[%clk 0:03:01]}  e6 {[%clk 0:03:00]} 3. g3 {[%clk 0:03:00]}  d5 {[%clk 0:03:00]} 4. Nf3 {[%clk 0:03:00]}  Bb4+ {[%clk 0:03:01]} 5. Bd2 {[%clk 0:03:00]}  a5 {[%clk 0:03:01]} 6. Bg2 {[%clk 0:02:58]}  O-O {[%clk 0:03:02]} 7. Qc2 {[%clk 0:02:59]}  c5 {[%clk 0:03:00]} 8. dxc5 {[%clk 0:02:58]}  d4 {[%clk 0:02:59]} 9. Bxb4 {[%clk 0:02:55]}  axb4 {[%clk 0:03:00]} 10. Nbd2 {[%clk 0:02:55]}  Nc6 {[%clk 0:02:58]} 11. O-O {[%clk 0:02:53]}  Qe7 {[%clk 0:02:56]} 12. Nb3 {[%clk 0:02:53]}  e5 {[%clk 0:02:56]} 13. Ng5 {[%clk 0:02:45]}  h6 {[%clk 0:02:47]} 14. Ne4 {[%clk 0:02:44]}  Nxe4 {[%clk 0:02:46]} 15. Bxe4 {[%clk 0:02:44]}  Be6 {[%clk 0:02:39]} 16. Rfe1 {[%clk 0:02:35]}  Na5 {[%clk 0:02:39]} 17. e3 {[%clk 0:02:26]}  Nxb3 {[%clk 0:02:38]} 18. Qxb3 {[%clk 0:01:59]}  Qxc5 {[%clk 0:02:37]} 19. exd4 {[%clk 0:01:47]}  exd4 {[%clk 0:02:35]} 20. Rac1 {[%clk 0:01:16]}  Rab8 {[%clk 0:02:27]} 21. Bd5 {[%clk 0:01:15]}  Bf5 {[%clk 0:02:22]} 22. Qf3 {[%clk 0:01:07]}  Bg6 {[%clk 0:02:21]} 23. Rcd1 {[%clk 0:00:33]}  b5 {[%clk 0:02:18]} 24. b3 {[%clk 0:00:32]}  Rbd8 {[%clk 0:02:16]} 25. Re5 {[%clk 0:00:29]}  Qc7 {[%clk 0:02:12]} 26. Rde1 {[%clk 0:00:19]}  bxc4 {[%clk 0:02:10]} 27. Bxc4 {[%clk 0:00:17]}  d3 {[%clk 0:02:09]} 28. R5e3 {[%clk 0:00:08]}  d2 {[%clk 0:02:08]} 29. Rd1 {[%clk 0:00:07]}  Bc2 {[%clk 0:02:08]} 30. Qe2 {[%clk 0:00:07]}  Bxd1 {[%clk 0:02:09]} 31. Qxd1 {[%clk 0:00:07]}  Rd4 {[%clk 0:02:08]} 32. Re2 {[%clk 0:00:07]}  Rfd8 {[%clk 0:02:08]} 33. f4 {[%clk 0:00:04]}  Qc5 {[%clk 0:02:08]} 34. Kf1 {[%clk 0:00:04]}  h5 {[%clk 0:02:07]} 35. Rf2 {[%clk 0:00:04]}  h4 {[%clk 0:02:07]} 36. Re2 {[%clk 0:00:03]}  h3 {[%clk 0:02:07]} 37. Rf2 {[%clk 0:00:03]}  Rxc4 {[%clk 0:02:01]} 38. bxc4 {[%clk 0:00:02]}  Qxc4+ {[%clk 0:02:02]} 39. Re2 {[%clk 0:00:00]}  Qc1 {[%clk 0:02:02]} 0-1


[Site "https://www.chess.com"]

[Event "Titled Tuesday Blitz August 22 Late 2023"]
[White "Magallanes, Rey Jomar"]
[Black "Ismayil, Malak"]
[WhiteFideId "5205948"]
[BlackFideId "13412604"]
[WhiteElo "2254"]
[BlackElo "2484"]
[Result "0-1"]
[Round "9"]
[TimeControl "180+1"]
[Date "2023.08.22"]
[WhiteClock "0:02:16"]
[BlackClock "0:02:30"]
[Board "116"]

1. e4 {[%clk 0:03:00]}  e5 {[%clk 0:02:58]} 2. Nf3 {[%clk 0:03:01]}  Nc6 {[%clk 0:02:52]} 3. Bc4 {[%clk 0:03:00]}  Bc5 {[%clk 0:02:48]} 4. d3 {[%clk 0:03:00]}  Nf6 {[%clk 0:02:48]} 5. c3 {[%clk 0:03:00]}  O-O {[%clk 0:02:46]} 6. a4 {[%clk 0:02:59]}  a6 {[%clk 0:02:46]} 7. b4 {[%clk 0:02:58]}  Bb6 {[%clk 0:02:46]} 8. a5 {[%clk 0:02:58]}  Ba7 {[%clk 0:02:46]} 9. O-O {[%clk 0:02:58]}  h6 {[%clk 0:02:46]} 10. h3 {[%clk 0:02:58]}  d6 {[%clk 0:02:46]} 11. Nbd2 {[%clk 0:02:57]}  Be6 {[%clk 0:02:46]} 12. Re1 {[%clk 0:02:57]}  Re8 {[%clk 0:02:46]} 13. Qb3 {[%clk 0:02:55]}  d5 {[%clk 0:02:40]} 14. exd5 {[%clk 0:02:55]}  Bxd5 {[%clk 0:02:41]} 15. Bxd5 {[%clk 0:02:52]}  Qxd5 {[%clk 0:02:40]} 16. Qxd5 {[%clk 0:02:51]}  Nxd5 {[%clk 0:02:40]} 17. Bb2 {[%clk 0:02:40]}  Nf4 {[%clk 0:02:37]} 18. Re4 {[%clk 0:02:21]}  Nxd3 {[%clk 0:02:36]} 19. Ba3 {[%clk 0:02:18]}  Nxf2 {[%clk 0:02:30]} 20. Ree1 {[%clk 0:02:16]} 0-1


[Site "https://www.chess.com"]

[Event "Titled Tuesday Blitz August 22 Late 2023"]
[White "Merino Garcia, Rafael II"]
[Black "KSho99"]
[WhiteFideId "2209128"]
[WhiteElo "2351"]
[BlackElo "2224"]
[Result "0-1"]
[Round "9"]
[TimeControl "180+1"]
[Date "2023.08.22"]
[WhiteClock "0:00:02"]
[BlackClock "0:00:29"]
[Board "117"]

1. d4 {[%clk 0:02:45]}  e6 {[%clk 0:02:58]} 2. Nf3 {[%clk 0:02:40]}  f5 {[%clk 0:02:57]} 3. Nc3 {[%clk 0:02:37]}  Nf6 {[%clk 0:02:56]} 4. Bg5 {[%clk 0:02:35]}  Be7 {[%clk 0:02:55]} 5. Bxf6 {[%clk 0:02:32]}  Bxf6 {[%clk 0:02:55]} 6. e4 {[%clk 0:02:33]}  d5 {[%clk 0:02:52]} 7. e5 {[%clk 0:02:20]}  Be7 {[%clk 0:02:52]} 8. h4 {[%clk 0:02:20]}  c5 {[%clk 0:02:41]} 9. Bb5+ {[%clk 0:02:13]}  Nc6 {[%clk 0:02:30]} 10. a4 {[%clk 0:01:46]}  Bd7 {[%clk 0:02:27]} 11. Ne2 {[%clk 0:01:41]}  a6 {[%clk 0:02:06]} 12. Bxc6 {[%clk 0:01:37]}  Bxc6 {[%clk 0:02:06]} 13. Nf4 {[%clk 0:01:31]}  Bd7 {[%clk 0:01:55]} 14. c3 {[%clk 0:01:19]}  Qb6 {[%clk 0:01:46]} 15. Qd2 {[%clk 0:01:07]}  Rc8 {[%clk 0:01:33]} 16. O-O {[%clk 0:00:43]}  O-O {[%clk 0:01:26]} 17. Ng5 {[%clk 0:00:39]}  cxd4 {[%clk 0:01:13]} 18. Qxd4 {[%clk 0:00:32]}  Qxd4 {[%clk 0:01:03]} 19. cxd4 {[%clk 0:00:31]}  Bxg5 {[%clk 0:01:00]} 20. hxg5 {[%clk 0:00:30]}  Rc4 {[%clk 0:00:59]} 21. Rfd1 {[%clk 0:00:23]}  Rfc8 {[%clk 0:00:58]} 22. b3 {[%clk 0:00:20]}  Rc3 {[%clk 0:00:54]} 23. Rab1 {[%clk 0:00:19]}  b5 {[%clk 0:00:44]} 24. axb5 {[%clk 0:00:18]}  Bxb5 {[%clk 0:00:44]} 25. Rd2 {[%clk 0:00:17]}  Kf7 {[%clk 0:00:41]} 26. g3 {[%clk 0:00:16]}  Rc1+ {[%clk 0:00:37]} 27. Rxc1 {[%clk 0:00:15]}  Rxc1+ {[%clk 0:00:38]} 28. Kg2 {[%clk 0:00:15]}  Rb1 {[%clk 0:00:38]} 29. Rc2 {[%clk 0:00:11]}  Bf1+ {[%clk 0:00:30]} 30. Kf3 {[%clk 0:00:02]}  Rxb3+ {[%clk 0:00:29]} 0-1


[Site "https://www.chess.com"]

[Event "Titled Tuesday Blitz August 22 Late 2023"]
[White "Navyblue1"]
[Black "Hercegovac, Neven"]
[BlackFideId "2839135"]
[WhiteElo "2047"]
[BlackElo "2306"]
[Result "1/2-1/2"]
[Round "9"]
[TimeControl "180+1"]
[Date "2023.08.22"]
[WhiteClock "0:00:19"]
[BlackClock "0:00:13"]
[Board "118"]

1. d4 {[%clk 0:03:00]}  Nf6 {[%clk 0:02:59]} 2. c4 {[%clk 0:03:01]}  g6 {[%clk 0:02:59]} 3. Nc3 {[%clk 0:03:01]}  d5 {[%clk 0:02:59]} 4. Nf3 {[%clk 0:03:00]}  Bg7 {[%clk 0:02:58]} 5. Qb3 {[%clk 0:03:00]}  dxc4 {[%clk 0:02:45]} 6. Qxc4 {[%clk 0:03:01]}  O-O {[%clk 0:02:43]} 7. e4 {[%clk 0:03:02]}  Nc6 {[%clk 0:02:41]} 8. d5 {[%clk 0:02:39]}  Na5 {[%clk 0:01:58]} 9. Qa4 {[%clk 0:02:25]}  c6 {[%clk 0:01:58]} 10. dxc6 {[%clk 0:02:21]}  Nxc6 {[%clk 0:01:59]} 11. Be3 {[%clk 0:02:05]}  a6 {[%clk 0:01:53]} 12. a3 {[%clk 0:01:24]}  Bd7 {[%clk 0:01:53]} 13. Qc2 {[%clk 0:01:20]}  Rc8 {[%clk 0:01:51]} 14. Be2 {[%clk 0:01:12]}  Qa5 {[%clk 0:01:47]} 15. O-O {[%clk 0:01:06]}  Rfd8 {[%clk 0:01:47]} 16. Rad1 {[%clk 0:00:54]}  Ng4 {[%clk 0:01:37]} 17. Bf4 {[%clk 0:00:28]}  Nce5 {[%clk 0:01:28]} 18. Nxe5 {[%clk 0:00:20]}  Nxe5 {[%clk 0:01:29]} 19. Rd5 {[%clk 0:00:20]}  Qc7 {[%clk 0:01:09]} 20. Rfd1 {[%clk 0:00:20]}  Bc6 {[%clk 0:01:07]} 21. Rxd8+ {[%clk 0:00:20]}  Rxd8 {[%clk 0:01:07]} 22. Rxd8+ {[%clk 0:00:20]}  Qxd8 {[%clk 0:01:08]} 23. h3 {[%clk 0:00:19]}  Qd4 {[%clk 0:00:59]} 24. Be3 {[%clk 0:00:19]}  Qd6 {[%clk 0:00:58]} 25. Qd2 {[%clk 0:00:18]}  Qxd2 {[%clk 0:00:53]} 26. Bxd2 {[%clk 0:00:19]}  e6 {[%clk 0:00:49]} 27. Kf1 {[%clk 0:00:19]}  b5 {[%clk 0:00:47]} 28. Be3 {[%clk 0:00:19]}  Nc4 {[%clk 0:00:47]} 29. Bxc4 {[%clk 0:00:18]}  bxc4 {[%clk 0:00:48]} 30. f3 {[%clk 0:00:18]}  Kf8 {[%clk 0:00:44]} 31. Ke2 {[%clk 0:00:18]}  Ke8 {[%clk 0:00:42]} 32. Kd2 {[%clk 0:00:19]}  Kd7 {[%clk 0:00:39]} 33. Bc5 {[%clk 0:00:19]}  Be5 {[%clk 0:00:35]} 34. Be3 {[%clk 0:00:19]}  f6 {[%clk 0:00:30]} 35. Kc2 {[%clk 0:00:19]}  g5 {[%clk 0:00:29]} 36. b3 {[%clk 0:00:18]}  cxb3+ {[%clk 0:00:28]} 37. Kxb3 {[%clk 0:00:19]}  h5 {[%clk 0:00:27]} 38. Kc4 {[%clk 0:00:18]}  g4 {[%clk 0:00:24]} 39. hxg4 {[%clk 0:00:19]}  hxg4 {[%clk 0:00:25]} 40. Bd4 {[%clk 0:00:19]}  gxf3 {[%clk 0:00:22]} 41. gxf3 {[%clk 0:00:19]}  Bxd4 {[%clk 0:00:20]} 42. Kxd4 {[%clk 0:00:20]}  e5+ {[%clk 0:00:18]} 43. Kc5 {[%clk 0:00:20]}  Bb7 {[%clk 0:00:17]} 44. Kb6 {[%clk 0:00:20]}  Kc8 {[%clk 0:00:18]} 45. a4 {[%clk 0:00:20]}  f5 {[%clk 0:00:16]} 46. a5 {[%clk 0:00:18]}  f4 {[%clk 0:00:15]} 47. Kc5 {[%clk 0:00:17]}  Kc7 {[%clk 0:00:15]} 48. Nd5+ {[%clk 0:00:18]}  Kd7 {[%clk 0:00:13]} 49. Nb6+ {[%clk 0:00:18]}  Ke7 {[%clk 0:00:13]} 50. Nc4 {[%clk 0:00:18]}  Ke6 {[%clk 0:00:12]} 51. Nd6 {[%clk 0:00:18]}  Ba8 {[%clk 0:00:12]} 52. Nc4 {[%clk 0:00:18]}  Bb7 {[%clk 0:00:12]} 53. Nd6 {[%clk 0:00:18]}  Ba8 {[%clk 0:00:12]} 54. Nc4 {[%clk 0:00:19]}  Bb7 {[%clk 0:00:13]} 1/2-1/2


[Site "https://www.chess.com"]